Workbook

Sheet 护理人员
A1: 贵阳市公共卫生救治中心2025年公开招聘合同制护理人员笔试成绩及进入面试人员名单
A2: 序号 | B2: 报考岗位 | C2: 姓名 | D2: 性别 | E2: 学历 | F2: 联系电话 | G2: 笔试成绩 | H2: 招聘人数 | I2: 是否进入面试 | J2: 备注
A3: =SUBTOTAL(3,B$3:B3)*1 -> 1 | B3: 14临床护理岗 | C3: 汤路路 | D3: 女 | E3: 硕士研究生 | F3: 150****2207 | G3: 94 | H3: 2 | I3: 是
A4: =SUBTOTAL(3,B$3:B4)*1 -> 2 | B4: 14临床护理岗 | C4: 安树霞 | D4: 女 | E4: 硕士研究生 | F4: 152****1625 | G4: 89 | H4: 2 | I4: 是
A5: =SUBTOTAL(3,B$3:B5)*1 -> 3 | B5: 14临床护理岗 | C5: 步相艳 | D5: 女 | E5: 硕士研究生 | F5: 176****4245 | G5: 69 | H5: 2 | I5: 是
A6: =SUBTOTAL(3,B$3:B6)*1 -> 4 | B6: 15临床护理岗 | C6: 张青鸿宇 | D6: 男 | E6: 大学本科 | F6: 191****3847 | G6: 97 | H6: 8 | I6: 是
A7: =SUBTOTAL(3,B$3:B7)*1 -> 5 | B7: 15临床护理岗 | C7: 季雨欣 | D7: 女 | E7: 大学本科 | F7: 133****2168 | G7: 95 | H7: 8 | I7: 是
A8: =SUBTOTAL(3,B$3:B8)*1 -> 6 | B8: 15临床护理岗 | C8: 曾敬尧 | D8: 男 | E8: 大学本科 | F8: 187****9199 | G8: 92 | H8: 8 | I8: 是
A9: =SUBTOTAL(3,B$3:B9)*1 -> 7 | B9: 15临床护理岗 | C9: 李琴 | D9: 女 | E9: 大学本科 | F9: 151****2116 | G9: 92 | H9: 8 | I9: 是
A10: =SUBTOTAL(3,B$3:B10)*1 -> 8 | B10: 15临床护理岗 | C10: 王明明 | D10: 女 | E10: 大学本科 | F10: 182****3098 | G10: 92 | H10: 8 | I10: 是
A11: =SUBTOTAL(3,B$3:B11)*1 -> 9 | B11: 15临床护理岗 | C11: 余紫韵 | D11: 女 | E11: 大学本科 | F11: 182****1485 | G11: 91 | H11: 8 | I11: 是
A12: =SUBTOTAL(3,B$3:B12)*1 -> 10 | B12: 15临床护理岗 | C12: 陈巧 | D12: 女 | E12: 大学本科 | F12: 188****0526 | G12: 90 | H12: 8 | I12: 是
A13: =SUBTOTAL(3,B$3:B13)*1 -> 11 | B13: 15临床护理岗 | C13: 盛玉洁 | D13: 女 | E13: 大学本科 | F13: 182****7686 | G13: 90 | H13: 8 | I13: 是
A14: =SUBTOTAL(3,B$3:B14)*1 -> 12 | B14: 15临床护理岗 | C14: 肖玲丽 | D14: 女 | E14: 大学本科 | F14: 133****2251 | G14: 90 | H14: 8 | I14: 是
A15: =SUBTOTAL(3,B$3:B15)*1 -> 13 | B15: 15临床护理岗 | C15: 冉清秀 | D15: 女 | E15: 大学本科 | F15: 182****7841 | G15: 89 | H15: 8 | I15: 是
A16: =SUBTOTAL(3,B$3:B16)*1 -> 14 | B16: 15临床护理岗 | C16: 宋金亮 | D16: 女 | E16: 大学本科 | F16: 177****6094 | G16: 88 | H16: 8 | I16: 是
A17: =SUBTOTAL(3,B$3:B17)*1 -> 15 | B17: 15临床护理岗 | C17: 王利沙 | D17: 女 | E17: 大学本科 | F17: 182****2339 | G17: 88 | H17: 8 | I17: 是
A18: =SUBTOTAL(3,B$3:B18)*1 -> 16 | B18: 15临床护理岗 | C18: 陈文琴 | D18: 女 | E18: 大学本科 | F18: 187****0917 | G18: 87 | H18: 8 | I18: 是
A19: =SUBTOTAL(3,B$3:B19)*1 -> 17 | B19: 15临床护理岗 | C19: 王传彩 | D19: 女 | E19: 大学本科 | F19: 150****8478 | G19: 87 | H19: 8 | I19: 是
A20: =SUBTOTAL(3,B$3:B20)*1 -> 18 | B20: 15临床护理岗 | C20: 安迪 | D20: 女 | E20: 大学本科 | F20: 176****6823 | G20: 86 | H20: 8 | I20: 是
A21: =SUBTOTAL(3,B$3:B21)*1 -> 19 | B21: 15临床护理岗 | C21: 江停停 | D21: 女 | E21: 大学本科 | F21: 182****1553 | G21: 86 | H21: 8 | I21: 是
A22: =SUBTOTAL(3,B$3:B22)*1 -> 20 | B22: 15临床护理岗 | C22: 韦丹丹 | D22: 女 | E22: 大学本科 | F22: 187****8919 | G22: 86 | H22: 8 | I22: 是
A23: =SUBTOTAL(3,B$3:B23)*1 -> 21 | B23: 15临床护理岗 | C23: 岳小丹 | D23: 女 | E23: 大学本科 | F23: 133****2010 | G23: 86 | H23: 8 | I23: 是
A24: =SUBTOTAL(3,B$3:B24)*1 -> 22 | B24: 15临床护理岗 | C24: 廖玉洁 | D24: 女 | E24: 大学本科 | F24: 156****0117 | G24: 85 | H24: 8 | I24: 是
A25: =SUBTOTAL(3,B$3:B25)*1 -> 23 | B25: 15临床护理岗 | C25: 刘运洋 | D25: 男 | E25: 大学本科 | F25: 186****8403 | G25: 85 | H25: 8 | I25: 是
A26: =SUBTOTAL(3,B$3:B26)*1 -> 24 | B26: 15临床护理岗 | C26: 王大美 | D26: 女 | E26: 大学本科 | F26: 151****7295 | G26: 84 | H26: 8 | I26: 是
A27: =SUBTOTAL(3,B$3:B27)*1 -> 25 | B27: 15临床护理岗 | C27: 赵彦群 | D27: 女 | E27: 大学本科 | F27: 158****0835 | G27: 84 | H27: 8 | I27: 是
A28: =SUBTOTAL(3,B$3:B28)*1 -> 26 | B28: 15临床护理岗 | C28: 陈海霞 | D28: 女 | E28: 大学本科 | F28: 187****8564 | G28: 83 | H28: 8 | I28: 是
A29: =SUBTOTAL(3,B$3:B29)*1 -> 27 | B29: 15临床护理岗 | C29: 黄慧 | D29: 女 | E29: 大学本科 | F29: 176****4182 | G29: 83 | H29: 8 | I29: 是
A30: =SUBTOTAL(3,B$3:B30)*1 -> 28 | B30: 15临床护理岗 | C30: 张艳 | D30: 女 | E30: 大学本科 | F30: 183****0991 | G30: 83 | H30: 8 | I30: 是
A31: =SUBTOTAL(3,B$3:B31)*1 -> 29 | B31: 15临床护理岗 | C31: 周小宇 | D31: 女 | E31: 大学本科 | F31: 185****1526 | G31: 83 | H31: 8 | I31: 是
A32: =SUBTOTAL(3,B$3:B32)*1 -> 30 | B32: 15临床护理岗 | C32: 刘芝燕 | D32: 女 | E32: 大学本科 | F32: 193****9805 | G32: 82 | H32: 8
A33: =SUBTOTAL(3,B$3:B33)*1 -> 31 | B33: 15临床护理岗 | C33: 王祖容 | D33: 女 | E33: 大学本科 | F33: 182****5214 | G33: 82 | H33: 8
A34: =SUBTOTAL(3,B$3:B34)*1 -> 32 | B34: 15临床护理岗 | C34: 吴艳 | D34: 女 | E34: 大学本科 | F34: 150****7186 | G34: 81 | H34: 8
A35: =SUBTOTAL(3,B$3:B35)*1 -> 33 | B35: 15临床护理岗 | C35: 徐丽 | D35: 女 | E35: 大学本科 | F35: 191****3843 | G35: 81 | H35: 8
A36: =SUBTOTAL(3,B$3:B36)*1 -> 34 | B36: 15临床护理岗 | C36: 罗安红 | D36: 男 | E36: 大学本科 | F36: 189****5901 | G36: 80 | H36: 8
A37: =SUBTOTAL(3,B$3:B37)*1 -> 35 | B37: 15临床护理岗 | C37: 罗绍琴 | D37: 女 | E37: 大学本科 | F37: 182****4223 | G37: 80 | H37: 8
A38: =SUBTOTAL(3,B$3:B38)*1 -> 36 | B38: 15临床护理岗 | C38: 卯会先 | D38: 女 | E38: 大学本科 | F38: 193****4773 | G38: 80 | H38: 8
A39: =SUBTOTAL(3,B$3:B39)*1 -> 37 | B39: 15临床护理岗 | C39: 黄运江 | D39: 男 | E39: 大学本科 | F39: 183****5732 | G39: 79 | H39: 8
A40: =SUBTOTAL(3,B$3:B40)*1 -> 38 | B40: 15临床护理岗 | C40: 吴道先 | D40: 女 | E40: 大学本科 | F40: 183****3698 | G40: 79 | H40: 8
A41: =SUBTOTAL(3,B$3:B41)*1 -> 39 | B41: 15临床护理岗 | C41: 徐星星 | D41: 女 | E41: 大学本科 | F41: 152****0975 | G41: 79 | H41: 8
A42: =SUBTOTAL(3,B$3:B42)*1 -> 40 | B42: 15临床护理岗 | C42: 刘余琴 | D42: 女 | E42: 大学本科 | F42: 136****8135 | G42: 78 | H42: 8
A43: =SUBTOTAL(3,B$3:B43)*1 -> 41 | B43: 15临床护理岗 | C43: 滕蔓 | D43: 女 | E43: 大学本科 | F43: 138****7115 | G43: 78 | H43: 8
A44: =SUBTOTAL(3,B$3:B44)*1 -> 42 | B44: 15临床护理岗 | C44: 卢小维 | D44: 女 | E44: 大学本科 | F44: 188****7817 | G44: 77 | H44: 8
A45: =SUBTOTAL(3,B$3:B45)*1 -> 43 | B45: 15临床护理岗 | C45: 夏明先 | D45: 女 | E45: 大学本科 | F45: 185****7691 | G45: 76 | H45: 8
A46: =SUBTOTAL(3,B$3:B46)*1 -> 44 | B46: 15临床护理岗 | C46: 刘恋 | D46: 女 | E46: 大学本科 | F46: 183****4001 | G46: 75 | H46: 8
A47: =SUBTOTAL(3,B$3:B47)*1 -> 45 | B47: 15临床护理岗 | C47: 蒙倩 | D47: 女 | E47: 大学本科 | F47: 185****3859 | G47: 75 | H47: 8
A48: =SUBTOTAL(3,B$3:B48)*1 -> 46 | B48: 15临床护理岗 | C48: 王应蝶 | D48: 女 | E48: 大学本科 | F48: 186****1040 | G48: 75 | H48: 8
A49: =SUBTOTAL(3,B$3:B49)*1 -> 47 | B49: 15临床护理岗 | C49: 杨阿送 | D49: 女 | E49: 大学本科 | F49: 182****8160 | G49: 75 | H49: 8
A50: =SUBTOTAL(3,B$3:B50)*1 -> 48 | B50: 15临床护理岗 | C50: 杨甜 | D50: 女 | E50: 大学本科 | F50: 156****7209 | G50: 75 | H50: 8
A51: =SUBTOTAL(3,B$3:B51)*1 -> 49 | B51: 15临床护理岗 | C51: 鲍星羽 | D51: 女 | E51: 大学本科 | F51: 181****0852 | G51: 74 | H51: 8
A52: =SUBTOTAL(3,B$3:B52)*1 -> 50 | B52: 15临床护理岗 | C52: 万叶仙 | D52: 女 | E52: 大学本科 | F52: 137****5645 | G52: 74 | H52: 8
A53: =SUBTOTAL(3,B$3:B53)*1 -> 51 | B53: 15临床护理岗 | C53: 韦科娜 | D53: 女 | E53: 大学本科 | F53: 180****1683 | G53: 74 | H53: 8
A54: =SUBTOTAL(3,B$3:B54)*1 -> 52 | B54: 15临床护理岗 | C54: 陈大利 | D54: 女 | E54: 大学本科 | F54: 187****2015 | G54: 73 | H54: 8
A55: =SUBTOTAL(3,B$3:B55)*1 -> 53 | B55: 15临床护理岗 | C55: 李若安好 | D55: 女 | E55: 大学本科 | F55: 151****8187 | G55: 73 | H55: 8
A56: =SUBTOTAL(3,B$3:B56)*1 -> 54 | B56: 15临床护理岗 | C56: 莫旖旎 | D56: 女 | E56: 大学本科 | F56: 150****2913 | G56: 73 | H56: 8
A57: =SUBTOTAL(3,B$3:B57)*1 -> 55 | B57: 15临床护理岗 | C57: 杨迪雁 | D57: 女 | E57: 大学本科 | F57: 177****5713 | G57: 73 | H57: 8
A58: =SUBTOTAL(3,B$3:B58)*1 -> 56 | B58: 15临床护理岗 | C58: 杨胜利 | D58: 女 | E58: 大学本科 | F58: 187****7534 | G58: 73 | H58: 8
A59: =SUBTOTAL(3,B$3:B59)*1 -> 57 | B59: 15临床护理岗 | C59: 余海燕 | D59: 女 | E59: 大学本科 | F59: 138****1032 | G59: 73 | H59: 8
A60: =SUBTOTAL(3,B$3:B60)*1 -> 58 | B60: 15临床护理岗 | C60: 张琰星 | D60: 女 | E60: 大学本科 | F60: 189****8890 | G60: 73 | H60: 8
A61: =SUBTOTAL(3,B$3:B61)*1 -> 59 | B61: 15临床护理岗 | C61: 胡雯君 | D61: 女 | E61: 大学本科 | F61: 158****8427 | G61: 72 | H61: 8
A62: =SUBTOTAL(3,B$3:B62)*1 -> 60 | B62: 15临床护理岗 | C62: 黄丹丹 | D62: 女 | E62: 大学本科 | F62: 153****0629 | G62: 72 | H62: 8
A63: =SUBTOTAL(3,B$3:B63)*1 -> 61 | B63: 15临床护理岗 | C63: 金佳丝 | D63: 女 | E63: 大学本科 | F63: 151****0461 | G63: 72 | H63: 8
A64: =SUBTOTAL(3,B$3:B64)*1 -> 62 | B64: 15临床护理岗 | C64: 李芬 | D64: 女 | E64: 大学本科 | F64: 189****0116 | G64: 72 | H64: 8
A65: =SUBTOTAL(3,B$3:B65)*1 -> 63 | B65: 15临床护理岗 | C65: 李燕 | D65: 女 | E65: 大学本科 | F65: 157****9436 | G65: 72 | H65: 8
A66: =SUBTOTAL(3,B$3:B66)*1 -> 64 | B66: 15临床护理岗 | C66: 罗珍 | D66: 女 | E66: 大学本科 | F66: 191****3904 | G66: 72 | H66: 8
A67: =SUBTOTAL(3,B$3:B67)*1 -> 65 | B67: 15临床护理岗 | C67: 欧阳燕 | D67: 女 | E67: 大学本科 | F67: 183****0298 | G67: 72 | H67: 8
A68: =SUBTOTAL(3,B$3:B68)*1 -> 66 | B68: 15临床护理岗 | C68: 涂松 | D68: 男 | E68: 大学本科 | F68: 187****3320 | G68: 72 | H68: 8
A69: =SUBTOTAL(3,B$3:B69)*1 -> 67 | B69: 15临床护理岗 | C69: 朱琳 | D69: 女 | E69: 大学本科 | F69: 181****1385 | G69: 72 | H69: 8
A70: =SUBTOTAL(3,B$3:B70)*1 -> 68 | B70: 15临床护理岗 | C70: 查远维 | D70: 女 | E70: 大学本科 | F70: 183****4672 | G70: 71 | H70: 8
A71: =SUBTOTAL(3,B$3:B71)*1 -> 69 | B71: 15临床护理岗 | C71: 李世美 | D71: 女 | E71: 大学本科 | F71: 182****8469 | G71: 71 | H71: 8
A72: =SUBTOTAL(3,B$3:B72)*1 -> 70 | B72: 15临床护理岗 | C72: 王艳萍 | D72: 女 | E72: 大学本科 | F72: 138****7505 | G72: 71 | H72: 8
A73: =SUBTOTAL(3,B$3:B73)*1 -> 71 | B73: 15临床护理岗 | C73: 王有菊 | D73: 女 | E73: 大学本科 | F73: 182****1853 | G73: 71 | H73: 8
A74: =SUBTOTAL(3,B$3:B74)*1 -> 72 | B74: 15临床护理岗 | C74: 余丹丹 | D74: 女 | E74: 大学本科 | F74: 139****6695 | G74: 71 | H74: 8
A75: =SUBTOTAL(3,B$3:B75)*1 -> 73 | B75: 15临床护理岗 | C75: 胡碟 | D75: 女 | E75: 大学本科 | F75: 181****3576 | G75: 70 | H75: 8
A76: =SUBTOTAL(3,B$3:B76)*1 -> 74 | B76: 15临床护理岗 | C76: 龙长艳 | D76: 女 | E76: 大学本科 | F76: 155****9409 | G76: 70 | H76: 8
A77: =SUBTOTAL(3,B$3:B77)*1 -> 75 | B77: 15临床护理岗 | C77: 肖祥俊 | D77: 女 | E77: 大学本科 | F77: 191****0850 | G77: 70 | H77: 8
A78: =SUBTOTAL(3,B$3:B78)*1 -> 76 | B78: 15临床护理岗 | C78: 谢沙杉 | D78: 女 | E78: 大学本科 | F78: 183****2352 | G78: 70 | H78: 8
A79: =SUBTOTAL(3,B$3:B79)*1 -> 77 | B79: 15临床护理岗 | C79: 杨克树 | D79: 女 | E79: 大学本科 | F79: 183****9150 | G79: 70 | H79: 8
A80: =SUBTOTAL(3,B$3:B80)*1 -> 78 | B80: 15临床护理岗 | C80: 曹颖 | D80: 女 | E80: 大学本科 | F80: 178****7297 | G80: 69 | H80: 8
A81: =SUBTOTAL(3,B$3:B81)*1 -> 79 | B81: 15临床护理岗 | C81: 杜金鱼 | D81: 女 | E81: 大学本科 | F81: 191****6750 | G81: 69 | H81: 8
A82: =SUBTOTAL(3,B$3:B82)*1 -> 80 | B82: 15临床护理岗 | C82: 韩灿灿 | D82: 女 | E82: 大学本科 | F82: 159****3364 | G82: 69 | H82: 8
A83: =SUBTOTAL(3,B$3:B83)*1 -> 81 | B83: 15临床护理岗 | C83: 李顺顺 | D83: 男 | E83: 大学本科 | F83: 191****6750 | G83: 69 | H83: 8
A84: =SUBTOTAL(3,B$3:B84)*1 -> 82 | B84: 15临床护理岗 | C84: 邰邦秀 | D84: 女 | E84: 大学本科 | F84: 187****9343 | G84: 69 | H84: 8
A85: =SUBTOTAL(3,B$3:B85)*1 -> 83 | B85: 15临床护理岗 | C85: 杨邱苹 | D85: 女 | E85: 大学本科 | F85: 159****2825 | G85: 69 | H85: 8
A86: =SUBTOTAL(3,B$3:B86)*1 -> 84 | B86: 15临床护理岗 | C86: 杨玉红 | D86: 女 | E86: 大学本科 | F86: 147****9795 | G86: 69 | H86: 8
A87: =SUBTOTAL(3,B$3:B87)*1 -> 85 | B87: 15临床护理岗 | C87: 张薰月 | D87: 女 | E87: 大学本科 | F87: 198****0570 | G87: 69 | H87: 8
A88: =SUBTOTAL(3,B$3:B88)*1 -> 86 | B88: 15临床护理岗 | C88: 陈丽莎 | D88: 女 | E88: 大学本科 | F88: 189****4421 | G88: 68 | H88: 8
A89: =SUBTOTAL(3,B$3:B89)*1 -> 87 | B89: 15临床护理岗 | C89: 龚远芳 | D89: 女 | E89: 大学本科 | F89: 139****3235 | G89: 68 | H89: 8
A90: =SUBTOTAL(3,B$3:B90)*1 -> 88 | B90: 15临床护理岗 | C90: 侯呸乖 | D90: 女 | E90: 大学本科 | F90: 151****7727 | G90: 68 | H90: 8
A91: =SUBTOTAL(3,B$3:B91)*1 -> 89 | B91: 15临床护理岗 | C91: 罗家冯 | D91: 女 | E91: 大学本科 | F91: 180****5234 | G91: 68 | H91: 8
A92: =SUBTOTAL(3,B$3:B92)*1 -> 90 | B92: 15临床护理岗 | C92: 田如平 | D92: 男 | E92: 大学本科 | F92: 187****7865 | G92: 68 | H92: 8
A93: =SUBTOTAL(3,B$3:B93)*1 -> 91 | B93: 15临床护理岗 | C93: 王洪迪 | D93: 女 | E93: 大学本科 | F93: 182****7805 | G93: 68 | H93: 8
A94: =SUBTOTAL(3,B$3:B94)*1 -> 92 | B94: 15临床护理岗 | C94: 吴露沙 | D94: 女 | E94: 大学本科 | F94: 158****7461 | G94: 68 | H94: 8
A95: =SUBTOTAL(3,B$3:B95)*1 -> 93 | B95: 15临床护理岗 | C95: 熊安芳 | D95: 女 | E95: 大学本科 | F95: 187****8604 | G95: 68 | H95: 8
A96: =SUBTOTAL(3,B$3:B96)*1 -> 94 | B96: 15临床护理岗 | C96: 张雨蝶 | D96: 女 | E96: 大学本科 | F96: 135****5390 | G96: 68 | H96: 8
A97: =SUBTOTAL(3,B$3:B97)*1 -> 95 | B97: 15临床护理岗 | C97: 朱会会 | D97: 女 | E97: 大学本科 | F97: 147****2301 | G97: 68 | H97: 8
A98: =SUBTOTAL(3,B$3:B98)*1 -> 96 | B98: 15临床护理岗 | C98: 朱家家 | D98: 女 | E98: 大学本科 | F98: 133****9491 | G98: 68 | H98: 8
A99: =SUBTOTAL(3,B$3:B99)*1 -> 97 | B99: 15临床护理岗 | C99: 方远映 | D99: 女 | E99: 大学本科 | F99: 187****8230 | G99: 67 | H99: 8
A100: =SUBTOTAL(3,B$3:B100)*1 -> 98 | B100: 15临床护理岗 | C100: 米江琴 | D100: 女 | E100: 大学本科 | F100: 184****3390 | G100: 67 | H100: 8
A101: =SUBTOTAL(3,B$3:B101)*1 -> 99 | B101: 15临床护理岗 | C101: 彭念 | D101: 女 | E101: 大学本科 | F101: 175****0061 | G101: 67 | H101: 8
A102: =SUBTOTAL(3,B$3:B102)*1 -> 100 | B102: 15临床护理岗 | C102: 赵玉利 | D102: 女 | E102: 大学本科 | F102: 185****2314 | G102: 67 | H102: 8
A103: =SUBTOTAL(3,B$3:B103)*1 -> 101 | B103: 15临床护理岗 | C103: 何艺 | D103: 女 | E103: 大学本科 | F103: 130****9935 | G103: 66 | H103: 8
A104: =SUBTOTAL(3,B$3:B104)*1 -> 102 | B104: 15临床护理岗 | C104: 李路路 | D104: 女 | E104: 大学本科 | F104: 151****2435 | G104: 66 | H104: 8
A105: =SUBTOTAL(3,B$3:B105)*1 -> 103 | B105: 15临床护理岗 | C105: 罗晓晓 | D105: 女 | E105: 大学本科 | F105: 147****1753 | G105: 66 | H105: 8
A106: =SUBTOTAL(3,B$3:B106)*1 -> 104 | B106: 15临床护理岗 | C106: 彭钰梅 | D106: 女 | E106: 大学本科 | F106: 182****0812 | G106: 66 | H106: 8
A107: =SUBTOTAL(3,B$3:B107)*1 -> 105 | B107: 15临床护理岗 | C107: 王茂雪 | D107: 女 | E107: 大学本科 | F107: 187****2447 | G107: 66 | H107: 8
A108: =SUBTOTAL(3,B$3:B108)*1 -> 106 | B108: 15临床护理岗 | C108: 吴汾浍 | D108: 女 | E108: 大学本科 | F108: 133****2276 | G108: 66 | H108: 8
A109: =SUBTOTAL(3,B$3:B109)*1 -> 107 | B109: 15临床护理岗 | C109: 夏敏 | D109: 女 | E109: 大学本科 | F109: 150****6226 | G109: 66 | H109: 8
A110: =SUBTOTAL(3,B$3:B110)*1 -> 108 | B110: 15临床护理岗 | C110: 夏扬 | D110: 女 | E110: 大学本科 | F110: 188****8604 | G110: 66 | H110: 8
A111: =SUBTOTAL(3,B$3:B111)*1 -> 109 | B111: 15临床护理岗 | C111: 颜竹 | D111: 女 | E111: 大学本科 | F111: 151****7817 | G111: 66 | H111: 8
A112: =SUBTOTAL(3,B$3:B112)*1 -> 110 | B112: 15临床护理岗 | C112: 叶迪 | D112: 女 | E112: 大学本科 | F112: 180****8343 | G112: 66 | H112: 8
A113: =SUBTOTAL(3,B$3:B113)*1 -> 111 | B113: 15临床护理岗 | C113: 殷选娟 | D113: 女 | E113: 大学本科 | F113: 191****2532 | G113: 66 | H113: 8
A114: =SUBTOTAL(3,B$3:B114)*1 -> 112 | B114: 15临床护理岗 | C114: 袁洋 | D114: 女 | E114: 大学本科 | F114: 183****6605 | G114: 66 | H114: 8
A115: =SUBTOTAL(3,B$3:B115)*1 -> 113 | B115: 15临床护理岗 | C115: 郭梦 | D115: 女 | E115: 大学本科 | F115: 182****6038 | G115: 65 | H115: 8
A116: =SUBTOTAL(3,B$3:B116)*1 -> 114 | B116: 15临床护理岗 | C116: 郭玉霞 | D116: 女 | E116: 大学本科 | F116: 182****9956 | G116: 65 | H116: 8
A117: =SUBTOTAL(3,B$3:B117)*1 -> 115 | B117: 15临床护理岗 | C117: 李朝映 | D117: 男 | E117: 大学本科 | F117: 176****6449 | G117: 65 | H117: 8
A118: =SUBTOTAL(3,B$3:B118)*1 -> 116 | B118: 15临床护理岗 | C118: 李琪瑶 | D118: 女 | E118: 大学本科 | F118: 181****0040 | G118: 65 | H118: 8
A119: =SUBTOTAL(3,B$3:B119)*1 -> 117 | B119: 15临床护理岗 | C119: 罗秋玉 | D119: 女 | E119: 大学本科 | F119: 185****2504 | G119: 65 | H119: 8
A120: =SUBTOTAL(3,B$3:B120)*1 -> 118 | B120: 15临床护理岗 | C120: 吴霄 | D120: 女 | E120: 大学本科 | F120: 136****2358 | G120: 65 | H120: 8
A121: =SUBTOTAL(3,B$3:B121)*1 -> 119 | B121: 15临床护理岗 | C121: 颜家旗 | D121: 女 | E121: 大学本科 | F121: 182****4916 | G121: 65 | H121: 8
A122: =SUBTOTAL(3,B$3:B122)*1 -> 120 | B122: 15临床护理岗 | C122: 杨力 | D122: 女 | E122: 大学本科 | F122: 187****2939 | G122: 65 | H122: 8
A123: =SUBTOTAL(3,B$3:B123)*1 -> 121 | B123: 15临床护理岗 | C123: 杨飘 | D123: 女 | E123: 大学本科 | F123: 176****7914 | G123: 65 | H123: 8
A124: =SUBTOTAL(3,B$3:B124)*1 -> 122 | B124: 15临床护理岗 | C124: 张禄霞 | D124: 女 | E124: 大学本科 | F124: 191****1602 | G124: 65 | H124: 8
A125: =SUBTOTAL(3,B$3:B125)*1 -> 123 | B125: 15临床护理岗 | C125: 张瑜 | D125: 女 | E125: 大学本科 | F125: 181****4338 | G125: 65 | H125: 8
A126: =SUBTOTAL(3,B$3:B126)*1 -> 124 | B126: 15临床护理岗 | C126: 赵分分 | D126: 女 | E126: 大学本科 | F126: 166****8985 | G126: 65 | H126: 8
A127: =SUBTOTAL(3,B$3:B127)*1 -> 125 | B127: 15临床护理岗 | C127: 赵自宁 | D127: 女 | E127: 大学本科 | F127: 184****4745 | G127: 65 | H127: 8
A128: =SUBTOTAL(3,B$3:B128)*1 -> 126 | B128: 15临床护理岗 | C128: 谷顺仙 | D128: 女 | E128: 大学本科 | F128: 152****0924 | G128: 64 | H128: 8
A129: =SUBTOTAL(3,B$3:B129)*1 -> 127 | B129: 15临床护理岗 | C129: 金远义 | D129: 女 | E129: 大学本科 | F129: 150****7372 | G129: 64 | H129: 8
A130: =SUBTOTAL(3,B$3:B130)*1 -> 128 | B130: 15临床护理岗 | C130: 李若云 | D130: 女 | E130: 大学本科 | F130: 182****6724 | G130: 64 | H130: 8
A131: =SUBTOTAL(3,B$3:B131)*1 -> 129 | B131: 15临床护理岗 | C131: 李子玉 | D131: 女 | E131: 大学本科 | F131: 188****9476 | G131: 64 | H131: 8
A132: =SUBTOTAL(3,B$3:B132)*1 -> 130 | B132: 15临床护理岗 | C132: 任万斌 | D132: 男 | E132: 大学本科 | F132: 180****7361 | G132: 64 | H132: 8
A133: =SUBTOTAL(3,B$3:B133)*1 -> 131 | B133: 15临床护理岗 | C133: 谭存敏 | D133: 女 | E133: 大学本科 | F133: 150****0797 | G133: 64 | H133: 8
A134: =SUBTOTAL(3,B$3:B134)*1 -> 132 | B134: 15临床护理岗 | C134: 王艳 | D134: 女 | E134: 大学本科 | F134: 182****9259 | G134: 64 | H134: 8
A135: =SUBTOTAL(3,B$3:B135)*1 -> 133 | B135: 15临床护理岗 | C135: 肖乾涛 | D135: 男 | E135: 大学本科 | F135: 182****838 | G135: 64 | H135: 8
A136: =SUBTOTAL(3,B$3:B136)*1 -> 134 | B136: 15临床护理岗 | C136: 邹华梯 | D136: 女 | E136: 大学本科 | F136: 151****8223 | G136: 64 | H136: 8
A137: =SUBTOTAL(3,B$3:B137)*1 -> 135 | B137: 15临床护理岗 | C137: 陈奕多 | D137: 女 | E137: 大学本科 | F137: 181****2020 | G137: 63 | H137: 8
A138: =SUBTOTAL(3,B$3:B138)*1 -> 136 | B138: 15临床护理岗 | C138: 程琨 | D138: 男 | E138: 大学本科 | F138: 182****9467 | G138: 63 | H138: 8
A139: =SUBTOTAL(3,B$3:B139)*1 -> 137 | B139: 15临床护理岗 | C139: 董淼淼 | D139: 女 | E139: 大学本科 | F139: 183****2439 | G139: 63 | H139: 8
A140: =SUBTOTAL(3,B$3:B140)*1 -> 138 | B140: 15临床护理岗 | C140: 胡琴容 | D140: 女 | E140: 大学本科 | F140: 183****0364 | G140: 63 | H140: 8
A141: =SUBTOTAL(3,B$3:B141)*1 -> 139 | B141: 15临床护理岗 | C141: 李琦琪 | D141: 女 | E141: 大学本科 | F141: 175****7284 | G141: 63 | H141: 8
A142: =SUBTOTAL(3,B$3:B142)*1 -> 140 | B142: 15临床护理岗 | C142: 刘明萍 | D142: 女 | E142: 大学本科 | F142: 188****9626 | G142: 63 | H142: 8
A143: =SUBTOTAL(3,B$3:B143)*1 -> 141 | B143: 15临床护理岗 | C143: 覃小霞 | D143: 女 | E143: 大学本科 | F143: 183****8271 | G143: 63 | H143: 8
A144: =SUBTOTAL(3,B$3:B144)*1 -> 142 | B144: 15临床护理岗 | C144: 汤文杰 | D144: 女 | E144: 大学本科 | F144: 178****4127 | G144: 63 | H144: 8
A145: =SUBTOTAL(3,B$3:B145)*1 -> 143 | B145: 15临床护理岗 | C145: 王丹 | D145: 女 | E145: 大学本科 | F145: 185****6429 | G145: 63 | H145: 8
A146: =SUBTOTAL(3,B$3:B146)*1 -> 144 | B146: 15临床护理岗 | C146: 王倩 | D146: 女 | E146: 大学本科 | F146: 147****5272 | G146: 63 | H146: 8
A147: =SUBTOTAL(3,B$3:B147)*1 -> 145 | B147: 15临床护理岗 | C147: 王雯 | D147: 女 | E147: 大学本科 | F147: 133****4912 | G147: 63 | H147: 8
A148: =SUBTOTAL(3,B$3:B148)*1 -> 146 | B148: 15临床护理岗 | C148: 吴攀盈 | D148: 女 | E148: 大学本科 | F148: 155****7391 | G148: 63 | H148: 8
A149: =SUBTOTAL(3,B$3:B149)*1 -> 147 | B149: 15临床护理岗 | C149: 杨忠青 | D149: 女 | E149: 大学本科 | F149: 130****3810 | G149: 63 | H149: 8
A150: =SUBTOTAL(3,B$3:B150)*1 -> 148 | B150: 15临床护理岗 | C150: 姚欢 | D150: 女 | E150: 大学本科 | F150: 151****2356 | G150: 63 | H150: 8
A151: =SUBTOTAL(3,B$3:B151)*1 -> 149 | B151: 15临床护理岗 | C151: 余诗云 | D151: 女 | E151: 大学本科 | F151: 151****8273 | G151: 63 | H151: 8
A152: =SUBTOTAL(3,B$3:B152)*1 -> 150 | B152: 15临床护理岗 | C152: 赵泽坚 | D152: 男 | E152: 大学本科 | F152: 150****1249 | G152: 63 | H152: 8
A153: =SUBTOTAL(3,B$3:B153)*1 -> 151 | B153: 15临床护理岗 | C153: 周科梅 | D153: 女 | E153: 大学本科 | F153: 187****3752 | G153: 63 | H153: 8
A154: =SUBTOTAL(3,B$3:B154)*1 -> 152 | B154: 15临床护理岗 | C154: 吕家帅 | D154: 男 | E154: 大学本科 | F154: 182****2010 | G154: 62 | H154: 8
A155: =SUBTOTAL(3,B$3:B155)*1 -> 153 | B155: 15临床护理岗 | C155: 唐桃花 | D155: 女 | E155: 大学本科 | F155: 151****9542 | G155: 62 | H155: 8
A156: =SUBTOTAL(3,B$3:B156)*1 -> 154 | B156: 15临床护理岗 | C156: 田婷 | D156: 女 | E156: 大学本科 | F156: 183****1513 | G156: 62 | H156: 8
A157: =SUBTOTAL(3,B$3:B157)*1 -> 155 | B157: 15临床护理岗 | C157: 杨春艳 | D157: 女 | E157: 大学本科 | F157: 150****8154 | G157: 62 | H157: 8
A158: =SUBTOTAL(3,B$3:B158)*1 -> 156 | B158: 15临床护理岗 | C158: 马鲜 | D158: 女 | E158: 大学本科 | F158: 180****6729 | G158: 61 | H158: 8
A159: =SUBTOTAL(3,B$3:B159)*1 -> 157 | B159: 15临床护理岗 | C159: 邓丽春 | D159: 女 | E159: 大学本科 | F159: 183****2758 | G159: 61 | H159: 8
A160: =SUBTOTAL(3,B$3:B160)*1 -> 158 | B160: 15临床护理岗 | C160: 李涛 | D160: 男 | E160: 大学本科 | F160: 131****5920 | G160: 61 | H160: 8
A161: =SUBTOTAL(3,B$3:B161)*1 -> 159 | B161: 15临床护理岗 | C161: 刘雨笛 | D161: 女 | E161: 大学本科 | F161: 188****2729 | G161: 61 | H161: 8
A162: =SUBTOTAL(3,B$3:B162)*1 -> 160 | B162: 15临床护理岗 | C162: 罗显玲 | D162: 女 | E162: 大学本科 | F162: 153****8094 | G162: 61 | H162: 8
A163: =SUBTOTAL(3,B$3:B163)*1 -> 161 | B163: 15临床护理岗 | C163: 罗瑶 | D163: 女 | E163: 大学本科 | F163: 189****0283 | G163: 61 | H163: 8
A164: =SUBTOTAL(3,B$3:B164)*1 -> 162 | B164: 15临床护理岗 | C164: 王荣堂 | D164: 女 | E164: 大学本科 | F164: 136****4463 | G164: 61 | H164: 8
A165: =SUBTOTAL(3,B$3:B165)*1 -> 163 | B165: 15临床护理岗 | C165: 吴新丽 | D165: 女 | E165: 大学本科 | F165: 183****2081 | G165: 61 | H165: 8
A166: =SUBTOTAL(3,B$3:B166)*1 -> 164 | B166: 15临床护理岗 | C166: 杨定琴 | D166: 女 | E166: 大学本科 | F166: 137****3547 | G166: 61 | H166: 8
A167: =SUBTOTAL(3,B$3:B167)*1 -> 165 | B167: 15临床护理岗 | C167: 杨娜娜 | D167: 女 | E167: 大学本科 | F167: 157****4105 | G167: 61 | H167: 8
A168: =SUBTOTAL(3,B$3:B168)*1 -> 166 | B168: 15临床护理岗 | C168: 陈美云 | D168: 女 | E168: 大学本科 | F168: 147****0545 | G168: 60 | H168: 8
A169: =SUBTOTAL(3,B$3:B169)*1 -> 167 | B169: 15临床护理岗 | C169: 董华秀 | D169: 女 | E169: 大学本科 | F169: 182****0963 | G169: 60 | H169: 8
A170: =SUBTOTAL(3,B$3:B170)*1 -> 168 | B170: 15临床护理岗 | C170: 李情美 | D170: 女 | E170: 大学本科 | F170: 182****0278 | G170: 60 | H170: 8
A171: =SUBTOTAL(3,B$3:B171)*1 -> 169 | B171: 15临床护理岗 | C171: 刘小莉 | D171: 女 | E171: 大学本科 | F171: 187****0430 | G171: 60 | H171: 8
A172: =SUBTOTAL(3,B$3:B172)*1 -> 170 | B172: 15临床护理岗 | C172: 饶雨 | D172: 女 | E172: 大学本科 | F172: 187****1897 | G172: 60 | H172: 8
A173: =SUBTOTAL(3,B$3:B173)*1 -> 171 | B173: 15临床护理岗 | C173: 文玲 | D173: 女 | E173: 大学本科 | F173: 177****4778 | G173: 60 | H173: 8
A174: =SUBTOTAL(3,B$3:B174)*1 -> 172 | B174: 15临床护理岗 | C174: 周江林 | D174: 女 | E174: 大学本科 | F174: 176****0915 | G174: 60 | H174: 8
A175: =SUBTOTAL(3,B$3:B175)*1 -> 173 | B175: 15临床护理岗 | C175: 刘月 | D175: 女 | E175: 大学本科 | F175: 187****9957 | G175: 59 | H175: 8
A176: =SUBTOTAL(3,B$3:B176)*1 -> 174 | B176: 15临床护理岗 | C176: 王容 | D176: 女 | E176: 大学本科 | F176: 182****2993 | G176: 59 | H176: 8
A177: =SUBTOTAL(3,B$3:B177)*1 -> 175 | B177: 15临床护理岗 | C177: 韦美玲 | D177: 女 | E177: 大学本科 | F177: 185****1324 | G177: 59 | H177: 8
A178: =SUBTOTAL(3,B$3:B178)*1 -> 176 | B178: 15临床护理岗 | C178: 姚思禹 | D178: 女 | E178: 大学本科 | F178: 139****0512 | G178: 59 | H178: 8
A179: =SUBTOTAL(3,B$3:B179)*1 -> 177 | B179: 15临床护理岗 | C179: 余云仙 | D179: 女 | E179: 大学本科 | F179: 176****4127 | G179: 59 | H179: 8
A180: =SUBTOTAL(3,B$3:B180)*1 -> 178 | B180: 15临床护理岗 | C180: 曹红 | D180: 女 | E180: 大学本科 | F180: 188****2193 | G180: 58 | H180: 8
A181: =SUBTOTAL(3,B$3:B181)*1 -> 179 | B181: 15临床护理岗 | C181: 陈洁娜 | D181: 女 | E181: 大学本科 | F181: 158****2118 | G181: 58 | H181: 8
A182: =SUBTOTAL(3,B$3:B182)*1 -> 180 | B182: 15临床护理岗 | C182: 陈前宏 | D182: 女 | E182: 大学本科 | F182: 157****2673 | G182: 58 | H182: 8
A183: =SUBTOTAL(3,B$3:B183)*1 -> 181 | B183: 15临床护理岗 | C183: 洪窕 | D183: 女 | E183: 大学本科 | F183: 157****0215 | G183: 58 | H183: 8
A184: =SUBTOTAL(3,B$3:B184)*1 -> 182 | B184: 15临床护理岗 | C184: 蒋新瑶 | D184: 女 | E184: 大学本科 | F184: 186****6172 | G184: 58 | H184: 8
A185: =SUBTOTAL(3,B$3:B185)*1 -> 183 | B185: 15临床护理岗 | C185: 李娇娇 | D185: 女 | E185: 大学本科 | F185: 156****8306 | G185: 58 | H185: 8
A186: =SUBTOTAL(3,B$3:B186)*1 -> 184 | B186: 15临床护理岗 | C186: 李廷婷 | D186: 女 | E186: 大学本科 | F186: 181****6983 | G186: 58 | H186: 8
A187: =SUBTOTAL(3,B$3:B187)*1 -> 185 | B187: 15临床护理岗 | C187: 刘文惠 | D187: 女 | E187: 大学本科 | F187: 182****0570 | G187: 58 | H187: 8
A188: =SUBTOTAL(3,B$3:B188)*1 -> 186 | B188: 15临床护理岗 | C188: 刘娅 | D188: 女 | E188: 大学本科 | F188: 151****9762 | G188: 58 | H188: 8
A189: =SUBTOTAL(3,B$3:B189)*1 -> 187 | B189: 15临床护理岗 | C189: 马明娟 | D189: 女 | E189: 大学本科 | F189: 183****0162 | G189: 58 | H189: 8
A190: =SUBTOTAL(3,B$3:B190)*1 -> 188 | B190: 15临床护理岗 | C190: 皮永丽 | D190: 女 | E190: 大学本科 | F190: 137****4140 | G190: 58 | H190: 8
A191: =SUBTOTAL(3,B$3:B191)*1 -> 189 | B191: 15临床护理岗 | C191: 邱荣鑫 | D191: 男 | E191: 大学本科 | F191: 182****7549 | G191: 58 | H191: 8
A192: =SUBTOTAL(3,B$3:B192)*1 -> 190 | B192: 15临床护理岗 | C192: 舒叶 | D192: 女 | E192: 大学本科 | F192: 152****7662 | G192: 58 | H192: 8
A193: =SUBTOTAL(3,B$3:B193)*1 -> 191 | B193: 15临床护理岗 | C193: 王玲利 | D193: 女 | E193: 大学本科 | F193: 184****6313 | G193: 58 | H193: 8
A194: =SUBTOTAL(3,B$3:B194)*1 -> 192 | B194: 15临床护理岗 | C194: 王升红 | D194: 女 | E194: 大学本科 | F194: 139****0492 | G194: 58 | H194: 8
A195: =SUBTOTAL(3,B$3:B195)*1 -> 193 | B195: 15临床护理岗 | C195: 肖娅妮 | D195: 女 | E195: 大学本科 | F195: 186****6120 | G195: 58 | H195: 8
A196: =SUBTOTAL(3,B$3:B196)*1 -> 194 | B196: 15临床护理岗 | C196: 严琳慧 | D196: 女 | E196: 大学本科 | F196: 180****4597 | G196: 58 | H196: 8
A197: =SUBTOTAL(3,B$3:B197)*1 -> 195 | B197: 15临床护理岗 | C197: 杨香雨 | D197: 女 | E197: 大学本科 | F197: 157****4907 | G197: 58 | H197: 8
A198: =SUBTOTAL(3,B$3:B198)*1 -> 196 | B198: 15临床护理岗 | C198: 杨艳丹 | D198: 女 | E198: 大学本科 | F198: 180****4149 | G198: 58 | H198: 8
A199: =SUBTOTAL(3,B$3:B199)*1 -> 197 | B199: 15临床护理岗 | C199: 袁慧 | D199: 女 | E199: 大学本科 | F199: 173****3751 | G199: 58 | H199: 8
A200: =SUBTOTAL(3,B$3:B200)*1 -> 198 | B200: 15临床护理岗 | C200: 袁汝磊 | D200: 女 | E200: 大学本科 | F200: 187****7165 | G200: 58 | H200: 8
... 134 more rows
